bitfinex-derivatives/quotes_BNBF0:USTF0_20250510
["timestamp","ask_amount","ask_price","bid_price","bid_amount"]
[1746848976899,0.2451972,661.17,660.49,0.278]
[1746848977199,0.2451972,661.16,660.49,0.278]
[1746848977395,0.2451972,661.15,660.49,0.278]
[1746848977798,0.2451972,661.14,660.49,0.278]
[1746848978099,0.2451972,661.13,660.49,0.278]
[1746848978499,0.2451972,661.24,660.49,0.278]
[1746848978695,0.2451972,661.23,660.49,0.278]
[1746848979000,0.2451972,661.22,660.49,0.278]
[1746848979201,0.2451972,661.21,660.49,0.278]
[1746848979501,0.2451972,661.2,660.49,0.278]
[1746848979804,0.2451972,661.19,660.49,0.278]
[1746848980000,0.2451972,661.18,660.49,0.278]
[1746848980301,0.2451972,661.24,660.49,0.278]
[1746848980503,0.2451972,661.23,660.49,0.278]
[1746848980804,0.2451972,661.22,660.49,0.278]
[1746848981001,0.2451972,661.21,660.49,0.278]
[1746848981403,0.2451972,661.2,660.49,0.278]
[1746848981704,0.2451972,661.21,660.49,0.278]
[1746848981902,0.2451972,661.19,660.49,0.278]
[1746848982103,0.2451972,661.21,660.49,0.278]
[1746848982303,0.26339691,661.22,660.49,0.278]
[1746848982703,0.24617037,661.21,660.49,0.278]
[1746848984003,0.26339691,661.2,660.49,0.278]
[1746848984605,0.24617037,661.19,660.49,0.278]
[1746848984905,0.24617037,661.19,660.48,0.342]
[1746848986510,0.24617037,661.19,660.49,0.299]
[1746848987307,0.24617037,661.28,660.49,0.299]
[1746848988011,0.26339691,661.27,660.49,0.299]
[1746848988309,0.24617037,661.26,660.49,0.299]
[1746848990311,0.30243917,661.29,660.49,0.299]
[1746848990312,0.26360641,661.25,660.49,0.299]
[1746848990712,0.24617037,661.24,660.49,0.299]
[1746848992511,0.24617037,661.24,660.5,0.332]
[1746848995816,0.24617037,661.23,660.5,0.332]
[1746848996123,0.50956828,661.23,660.5,0.332]
[1746848996316,0.24617037,661.22,660.5,0.332]
[1746848996516,0.24617037,661.21,660.5,0.332]
[1746848996812,0.24617037,661.2,660.5,0.332]
[1746848997216,0.24617037,661.19,660.5,0.332]
[1746848997516,0.24617037,661.18,660.5,0.332]
[1746848997918,0.24617037,661.22,660.5,0.332]
[1746848998319,0.24617037,661.21,660.5,0.332]
[1746848998818,0.24617037,661.2,660.5,0.332]
[1746848999010,0.24617037,661.19,660.5,0.332]
[1746848999215,0.5095922,661.19,660.5,0.332]
[1746848999413,0.24617037,661.18,660.5,0.332]
[1746848999920,0.24617037,661.17,660.5,0.332]
[1746849000324,0.24617037,661.16,660.5,0.332]
[1746849000718,0.24617037,661.15,660.5,0.332]
[1746849001022,0.24617037,661.14,660.5,0.332]
[1746849001321,0.24617037,661.13,660.5,0.332]
[1746849001622,0.24617037,661.12,660.5,0.332]
[1746849002020,0.24617037,661.11,660.5,0.332]
[1746849002323,0.24617037,661.1,660.5,0.332]
[1746849002724,0.24617037,661.09,660.5,0.332]
[1746849003019,1.89476654,661.08,660.5,0.332]
[1746849003217,2.14093691,661.08,660.5,0.332]
[1746849003623,0.24617037,661.07,660.5,0.332]
[1746849005127,0.26358145,661.06,660.5,0.332]
[1746849005431,1.89476654,661.01,660.5,0.332]
[1746849006030,1.89476654,661.01,660.51,0.279]
[1746849006225,0.24617037,661.0,660.51,0.279]
[1746849007630,0.24617037,661.05,660.51,0.279]
[1746849008131,0.26347568,661.04,660.51,0.279]
[1746849008432,0.24617037,661.03,660.51,0.279]
[1746849010032,0.54872849,661.03,660.51,0.279]
[1746849010233,0.3025627,661.02,660.51,0.279]
[1746849010631,0.24617037,661.01,660.51,0.279]
[1746849011034,0.24617037,661.0,660.51,0.279]
[1746849011533,0.24617037,661.01,660.51,0.279]
[1746849011736,0.3025627,661.02,660.51,0.279]
[1746849012132,0.24587111,661.01,660.51,0.279]
[1746849012535,1.89476654,660.89,660.51,0.279]
[1746849012836,0.24587111,660.88,660.51,0.279]
[1746849013338,0.24587111,660.87,660.51,0.279]
[1746849014041,0.24587111,660.86,660.51,0.279]
[1746849014235,0.50939967,660.86,660.51,0.279]
[1746849014434,0.24587111,660.85,660.51,0.279]
[1746849014634,0.24587111,660.84,660.51,0.279]
[1746849014934,0.24587111,660.83,660.51,0.279]
[1746849015239,0.24587111,660.82,660.51,0.279]
[1746849015539,0.24587111,660.81,660.51,0.279]
[1746849015839,0.24587111,660.85,660.51,0.279]
[1746849018746,0.26352856,660.86,660.51,0.279]
[1746849018942,0.24559998,660.85,660.51,0.279]
[1746849019241,0.24559998,660.84,660.51,0.279]
[1746849019644,0.24559998,660.85,660.51,0.279]
[1746849019936,0.2635076,660.83,660.51,0.279]
[1746849020342,0.24559998,660.82,660.51,0.279]
[1746849021547,0.2635076,660.83,660.51,0.279]
[1746849022048,0.24568355,660.82,660.51,0.279]
[1746849023042,0.26352756,660.81,660.51,0.279]
[1746849023448,0.24568355,660.8,660.51,0.279]
[1746849024051,0.26352756,660.81,660.51,0.279]
[1746849024349,0.24571164,660.8,660.51,0.279]
[1746849029156,0.26351758,660.79,660.51,0.279]
[1746849029456,0.24571164,660.78,660.51,0.279]
[1746849030756,0.26351758,660.79,660.51,0.279]
[1746849031056,0.24568177,660.78,660.51,0.279]
[1746849033358,0.26351758,660.79,660.51,0.279]
[1746849033857,0.2457246,660.78,660.51,0.279]
[1746849035256,0.26358045,660.77,660.51,0.279]
[1746849035660,0.2457246,660.76,660.51,0.279]
[1746849040460,0.26358045,660.77,660.51,0.279]
[1746849040760,0.3025627,661.02,660.51,0.279]
[1746849040963,0.2458794,660.76,660.51,0.279]
[1746849041260,0.2458794,661.01,660.51,0.279]
[1746849042160,0.26345673,661.0,660.51,0.279]
[1746849042859,0.2458794,660.99,660.51,0.279]
[1746849044061,0.26345275,660.98,660.51,0.279]
[1746849044561,0.2458794,660.97,660.51,0.279]
[1746849047164,0.26338196,660.96,660.51,0.279]
[1746849047463,0.24592696,660.95,660.51,0.279]
[1746849049165,0.24592696,660.95,660.23,0.375]
[1746849050767,0.26338196,660.96,660.23,0.375]
[1746849051066,0.24592613,660.95,660.23,0.375]
[1746849051967,0.24592613,660.95,660.24,0.29]
[1746849053067,1.89476654,661.6,660.24,0.29]
[1746849053264,0.26338495,660.94,660.24,0.29]
[1746849053463,0.30230659,661.58,660.24,0.29]
[1746849053667,0.24593605,660.94,660.24,0.29]
[1746849054067,0.24593605,661.57,660.24,0.29]
[1746849054267,0.26337299,660.93,660.24,0.29]
[1746849054468,0.54825178,661.56,660.24,0.29]
[1746849054768,0.26340887,660.92,660.24,0.29]
[1746849055068,0.54825635,661.55,660.24,0.29]
[1746849055269,0.24593605,660.91,660.24,0.29]
[1746849055470,0.54826092,661.54,660.24,0.29]
[1746849055663,0.24593605,661.53,660.24,0.29]
[1746849055867,0.30233401,661.52,660.24,0.29]
[1746849056370,0.24593605,661.51,660.25,0.254]
[1746849057470,0.30234315,661.5,660.25,0.254]
[1746849057872,0.24593605,661.49,660.25,0.254]
[1746849058172,0.3023523,661.48,660.25,0.254]
[1746849058773,0.24590553,661.47,660.25,0.254]
[1746849059073,0.30236144,661.46,660.25,0.254]
[1746849059275,0.56574539,661.46,660.25,0.254]
[1746849059475,0.24590553,661.45,660.25,0.254]
[1746849061176,0.24590553,661.44,660.25,0.254]
[1746849061578,0.24590553,661.43,660.25,0.254]
[1746849061976,0.50926855,661.42,660.25,0.254]
[1746849062383,0.24590553,661.41,660.26,0.30291097]
[1746849064685,0.26336302,661.42,660.26,0.30291097]
[1746849065082,0.24602822,661.41,660.26,0.30291097]
[1746849065383,0.24602822,661.41,660.27,0.91938821]
[1746849065584,0.24602822,661.41,660.28,0.91938821]
[1746849065784,0.24602822,661.41,660.29,0.91938821]
[1746849065977,0.24602822,661.41,660.3,0.91938821]
[1746849066179,0.24602822,661.41,660.31,0.91852498]
[1746849066381,0.24602822,661.41,660.32,0.91852498]
[1746849066578,0.24602822,661.41,660.33,0.91852498]
[1746849066781,0.24602822,661.41,660.34,0.91852498]
[1746849066982,0.24602822,661.41,660.35,0.91852498]
[1746849067280,0.24602822,661.41,660.36,0.91852498]
[1746849067476,0.24602822,661.41,660.26,0.30291097]
[1746849067681,0.24602822,661.41,660.27,0.91707275]
[1746849067883,0.24602822,661.41,660.26,0.30291097]
[1746849068085,0.24602822,661.41,660.27,0.91716773]
[1746849068285,0.24602822,661.41,660.26,0.30291097]
[1746849070985,0.26314397,661.4,660.26,0.30291097]
[1746849071290,0.24602822,661.39,660.26,0.30291097]
[1746849073992,0.26319372,661.38,660.26,0.30291097]
[1746849074192,0.26319372,661.38,660.27,0.91485282]
[1746849074390,0.26319372,661.38,660.28,0.91485282]
[1746849074591,0.26319372,661.38,660.29,0.91485282]
[1746849074792,0.24602822,661.37,660.3,0.91485282]
[1746849074992,0.24602822,661.37,660.31,0.91485282]
[1746849075193,0.24602822,661.37,660.32,0.91485282]
[1746849075386,0.24602822,661.37,660.33,0.91454415]
[1746849075590,0.24602822,661.37,660.34,0.91454415]
[1746849075790,0.24602822,661.37,660.35,0.91454415]
[1746849075992,0.24602822,661.37,660.36,0.91454415]
[1746849076195,0.24602822,661.37,660.37,0.91454415]
[1746849076394,0.26312904,661.55,660.38,0.91454415]
[1746849076692,0.26312904,661.55,660.39,0.91454415]
[1746849076893,0.24616255,661.54,660.4,0.91454415]
[1746849077088,0.24616255,662.5,660.41,0.91454415]
[1746849077293,0.3018959,662.48,660.42,0.91454415]
[1746849077595,0.24616255,662.47,660.43,0.91454415]
[1746849077893,0.3018959,662.48,660.44,0.91454415]
[1746849077894,0.24616255,662.46,660.44,0.91454415]
[1746849078096,0.50928662,662.46,660.44,0.91454415]
[1746849078297,0.24616255,662.45,660.44,0.91454415]
[1746849078597,0.24616255,662.44,660.44,0.91454415]
[1746849078998,0.24616255,662.43,660.43,0.359]
[1746849079298,0.24616255,662.43,660.44,0.91539928]
[1746849079490,0.24616255,662.42,660.45,0.91539928]
[1746849079696,0.24616255,662.42,660.46,0.91539928]
[1746849079898,0.24616255,662.41,660.47,0.91539928]
[1746849080098,0.24616255,662.4,660.48,0.91539928]
[1746849080301,0.24616255,662.4,660.49,0.91539928]
[1746849080601,0.24616255,662.39,660.5,0.9149413]
[1746849080800,0.24616255,662.39,660.43,0.359]
[1746849080995,0.24616255,662.38,660.44,0.91494069]
[1746849081197,0.24616255,662.38,660.45,0.91494069]
[1746849081402,0.24616255,662.37,660.46,0.91494069]
[1746849081601,0.24616255,662.37,660.47,0.91494069]
[1746849081901,0.3019506,662.36,660.48,1.21775076]
[1746849082095,0.54811315,662.36,660.49,0.91494069]
[1746849082303,0.54811315,662.36,660.5,1.21774159]
[1746849082499,0.24616255,662.35,660.51,0.91494069]
[1746849082696,0.54812226,662.34,660.52,1.21773242]
[1746849082996,0.54812226,662.34,660.54,0.30278257]
[1746849083202,0.24616255,662.33,660.55,0.91494069]
[1746849083402,0.24616255,662.32,660.57,0.30276882]
[1746849083604,0.24616255,662.32,660.58,0.91494069]
[1746849083802,0.24616255,662.33,660.59,0.91494069]
[1746849084103,0.24616255,662.33,660.6,0.91494069]
[1746849084297,0.24616255,662.33,660.61,0.91494069]
[1746849084497,0.24616255,662.33,660.63,0.30274132]
[1746849084700,0.24616255,662.33,660.64,0.91494069]
[1746849084902,0.24616255,662.33,660.65,0.91494069]
[1746849085102,0.24616255,662.33,660.66,0.91494069]
[1746849085302,0.24616255,662.33,660.63,0.30274132]
[1746849085303,0.24616255,662.33,660.67,0.91494069]
[1746849085503,0.24616255,662.33,660.69,0.30271382]
[1746849085706,0.24616255,662.33,660.7,0.91494069]
[1746849086002,0.24616255,662.33,660.72,0.30270008]
[1746849086202,0.26307534,662.32,660.73,0.91494069]
[1746849086504,0.24616255,662.31,660.75,0.30268634]
[1746849088504,0.24616255,662.31,660.76,0.91342998]
[1746849088699,0.24616255,662.31,660.78,0.30267259]
[1746849089204,0.26305446,662.3,660.78,0.30267259]
[1746849089606,0.24616255,662.29,660.78,0.30267259]
[1746849090899,0.24616255,662.29,660.79,0.91314687]
[1746849091105,0.24616255,662.29,660.81,0.30265885]
[1746849091306,0.24616255,662.29,660.82,0.91314687]
[1746849091507,0.24616255,662.29,660.84,0.30264511]
[1746849092107,0.24616255,662.28,660.84,0.30264511]
[1746849092302,0.50922098,662.28,660.84,0.30264511]
[1746849092504,0.24616255,662.27,660.84,0.30264511]
[1746849092808,0.24616255,662.26,660.84,0.30264511]
[1746849093106,0.24616255,662.25,660.84,0.30264511]
[1746849093409,0.24616255,662.24,660.84,0.30264511]
[1746849093714,0.24616255,662.27,660.85,0.91313625]
[1746849094008,0.24616255,662.27,660.84,0.30264511]
[1746849094009,0.24616255,662.27,660.87,0.30263137]
[1746849094206,0.24616255,662.27,660.88,0.91313625]
[1746849094403,0.24616255,662.27,660.89,0.91313625]
[1746849094605,0.24616255,662.27,660.9,1.21559557]
[1746849094807,0.24616255,662.27,660.91,0.91294087]
[1746849095007,0.24616255,662.27,660.92,0.91294087]
[1746849095204,0.24616255,662.27,660.93,0.91294087]
[1746849095409,0.24616255,662.27,660.94,0.9131131]
[1746849095709,0.24616255,662.27,660.9,0.30261764]
[1746849095910,0.24616255,662.27,660.91,0.9127273]
[1746849096109,0.24616255,662.27,660.92,0.9127273]
[1746849096303,0.24616255,662.27,660.93,0.9127273]
[1746849096506,0.24616255,662.27,660.94,1.21532662]
[1746849096704,0.24616255,662.27,660.95,0.9127273]
[1746849096907,0.24616255,662.27,660.97,0.30258559]
[1746849097111,0.24616255,662.27,660.98,0.9127273]
[1746849097307,0.24616255,662.27,660.99,0.9127273]
[1746849097504,0.24616255,662.27,661.0,0.9127273]
[1746849097706,0.24616255,662.27,661.01,1.21529458]
[1746849097904,0.24616255,662.27,661.03,0.30255812]
[1746849098109,0.24616255,662.27,661.04,0.9127273]
[1746849098311,0.26282896,662.26,661.06,0.30254439]
[1746849098511,0.26282896,662.26,661.07,0.9127273]
[1746849098812,0.26282896,662.26,661.09,0.30253066]
[1746849099307,0.24616255,662.25,661.09,0.30253066]
[1746849101219,0.26287562,662.24,661.09,0.30253066]
[1746849102016,0.24616255,662.23,661.09,0.30253066]
[1746849102211,0.24616255,662.23,661.1,0.358]
[1746849103416,0.24616255,662.23,661.12,0.30251694]
[1746849104216,0.24616255,663.69,661.12,0.30251694]
[1746849104419,0.3014,663.57,661.12,0.30251694]
[1746849105012,0.24616255,663.56,661.12,0.30251694]
[1746849105218,0.50898754,663.56,661.12,0.30251694]
[1746849105418,0.24616255,663.55,661.12,0.30251694]
[1746849105620,0.24616255,663.54,661.12,0.30251694]
[1746849105819,0.26282499,663.56,661.12,0.30251694]
[1746849106019,0.24632651,663.55,661.12,0.30251694]
[1746849106318,0.24632651,663.54,661.12,0.30251694]
[1746849106618,0.24632651,663.53,661.12,0.30251694]
[1746849106819,0.24632651,663.52,661.12,0.30251694]
[1746849107013,0.24632651,663.51,661.12,0.30251694]
[1746849107418,0.24632651,663.5,661.12,0.30251694]
[1746849107616,0.24632651,663.49,661.12,0.30251694]
[1746849107823,0.24632651,663.48,661.12,0.30251694]
[1746849108123,0.24632651,663.47,661.12,0.30251694]
[1746849108422,1.89476654,663.16,661.12,0.30251694]
[1746849108624,0.24632651,663.15,661.12,0.30251694]
[1746849108923,0.54792194,663.14,661.12,0.30251694]
[1746849109221,0.24632651,663.13,661.12,0.30251694]
[1746849109530,0.24632651,663.12,661.12,0.30251694]
[1746849109823,0.24632651,663.11,661.12,0.30251694]
[1746849110016,0.24632651,663.1,661.12,0.30251694]
[1746849110216,0.30161818,663.09,661.12,0.30251694]
[1746849110416,0.54794469,663.09,661.12,0.30251694]
[1746849110622,0.24632651,663.08,661.12,0.30251694]
[1746849110822,0.24632651,663.07,661.12,0.30251694]
[1746849111022,0.54795833,663.06,661.12,0.30251694]
[1746849111226,0.30164092,663.04,661.12,0.30251694]
[1746849111425,0.24632705,663.03,661.12,0.30251694]
[1746849111720,0.30165457,663.01,661.12,0.30251694]
[1746849111925,0.24632705,663.0,661.12,0.30251694]
[1746849112126,0.30166822,662.98,661.12,0.30251694]
[1746849112424,0.24632705,662.97,661.12,0.30251694]
[1746849112617,0.24632705,662.96,661.12,0.30251694]
[1746849112821,0.30168642,662.94,661.12,0.30251694]
[1746849113018,0.24632705,662.93,661.12,0.30251694]
[1746849113222,0.30170007,662.91,661.12,0.30251694]
[1746849113425,0.24632705,662.9,661.12,0.30251694]
[1746849113627,0.30171373,662.88,661.12,0.30251694]
[1746849113926,0.24632705,662.87,661.12,0.30251694]
[1746849114124,0.30172738,662.85,661.12,0.30251694]
[1746849114320,0.24632705,662.84,661.12,0.30251694]
[1746849114830,0.54806354,662.83,661.12,0.30251694]
[1746849115029,0.54806809,662.82,661.12,0.30251694]
[1746849115327,0.24632705,662.81,661.12,0.30251694]
[1746849115528,0.24632705,662.8,661.12,0.30251694]
[1746849115722,0.30174104,662.82,661.12,0.30251694]
[1746849115723,0.24632705,662.79,661.12,0.30251694]
[1746849115922,0.24632705,662.78,661.12,0.30251694]
[1746849116127,0.24632705,662.77,661.12,0.30251694]
[1746849116327,0.24632705,662.76,661.12,0.30251694]
[1746849116527,0.24632705,662.75,661.12,0.30251694]
[1746849116828,0.24632705,662.78,661.12,0.30251694]
[1746849117029,0.24632705,662.77,661.12,0.30251694]
[1746849117227,0.24632705,662.76,661.12,0.30251694]
[1746849117424,0.54809996,662.75,661.12,0.30251694]
[1746849117627,0.54810451,662.74,661.12,0.30251694]
[1746849117827,0.54810907,662.73,661.12,0.30251694]
[1746849118032,0.54811362,662.72,661.12,0.30251694]
[1746849118328,0.24632705,662.71,661.12,0.30251694]
[1746849119729,0.24632705,662.7,661.12,0.30251694]
[1746849119923,0.24632705,662.69,661.12,0.30251694]
[1746849120123,0.24632705,662.68,661.12,0.30251694]
[1746849120524,0.24632705,662.67,661.12,0.30251694]
[1746849121027,0.24632705,662.66,661.13,0.273]
[1746849121230,0.24632705,662.71,661.13,0.273]
[1746849121728,0.24632705,662.71,661.15,0.30250321]
[1746849121930,0.24632705,662.71,661.16,0.91648651]
[1746849122129,0.24632705,662.71,661.15,0.30250321]
[1746849122130,0.24632705,662.71,661.17,0.91648651]
[1746849122332,0.26287065,662.7,661.18,0.91648651]
[1746849122530,0.24632705,662.69,661.19,0.91648651]
[1746849122723,0.24632705,662.69,661.2,0.91648651]
[1746849123023,0.24632705,662.69,661.21,0.91648651]
[1746849123226,0.24632705,662.69,661.22,0.91648651]
[1746849123424,0.24632705,662.69,661.23,0.91648651]
[1746849123631,0.24632705,662.69,661.15,0.30250321]
[1746849123836,0.24632705,662.69,661.16,0.91742901]
[1746849124130,0.24632705,662.69,661.17,0.91742901]
[1746849124325,0.24632705,662.69,661.18,0.91742901]
[1746849124530,0.24632705,662.69,661.19,0.91742901]
[1746849124731,0.24632705,662.69,661.2,0.9177303]
[1746849124932,0.24632705,662.69,661.21,0.9177303]
[1746849125127,0.24632705,662.69,661.15,0.30250321]
[1746849125331,0.30178657,662.72,661.16,0.91760106]
[1746849125332,0.26288157,662.68,661.16,0.91760106]
[1746849125531,0.24632705,662.67,661.18,0.30248948]
[1746849125827,0.24632705,662.67,661.19,0.91760106]
[1746849126032,0.24632705,662.67,661.21,0.30247576]
[1746849126231,0.26288157,662.68,661.22,0.91760106]
[1746849126431,0.24629967,662.67,661.24,0.30246204]
[1746849127235,0.24629967,662.66,661.24,0.30246204]
[1746849127432,0.24629967,662.65,661.24,0.30246204]
[1746849127632,0.24629967,662.64,661.24,0.30246204]
[1746849127834,0.24629967,662.63,661.24,0.30246204]
[1746849128040,0.26288157,662.68,661.24,0.30246204]
[1746849128236,0.24646393,662.67,661.24,0.30246204]
[1746849128435,0.24646393,662.66,661.24,0.30246204]
[1746849128636,0.24646393,662.65,661.24,0.30246204]
[1746849128834,0.24646393,662.67,661.24,0.30246204]
[1746849131138,0.26288157,662.66,661.24,0.30246204]
[1746849131343,0.24646393,662.65,661.25,0.31]
[1746849131545,0.24646393,662.65,661.27,0.30244831]
[1746849132342,0.24646393,662.65,661.28,0.91913099]
[1746849132544,0.24646393,662.65,661.29,1.22157016]
[1746849132745,0.24646393,662.65,661.3,1.22156558]
[1746849133043,0.26288157,662.66,661.31,0.30243002]
[1746849133242,0.24641818,662.65,661.31,0.30243002]
[1746849133446,0.24641818,662.64,661.31,0.30243002]
[1746849133641,0.24641818,662.65,661.31,0.30243002]
[1746849134136,0.26289647,662.63,661.31,0.30243002]
[1746849134334,0.24641818,662.62,661.32,0.9198656]
[1746849134544,0.24641818,662.62,661.33,0.30242087]
[1746849134845,0.26289647,662.63,661.33,0.30242087]
[1746849135043,0.24689493,662.61,661.33,0.30242087]
[1746849135343,0.24689493,662.6,661.34,0.92031856]
[1746849135544,0.24689493,662.62,661.36,0.30240716]
[1746849135743,0.24689493,662.59,661.37,0.92031856]
[1746849135937,0.24689493,662.58,661.39,0.30239344]
[1746849136139,0.24689493,662.62,661.4,0.92031856]
[1746849136338,0.24689493,662.62,661.41,0.92031856]
[1746849136543,0.24689493,662.62,661.42,0.92031856]
[1746849136742,0.24689493,662.62,661.43,0.92031856]
[1746849136943,0.24689493,662.71,661.44,0.92031856]
[1746849137143,0.24689493,662.61,661.45,1.22268457]
[1746849137344,0.24689493,662.6,661.47,0.30235687]
[1746849137546,0.24689493,662.6,661.48,0.92031856]
[1746849137747,0.24689493,662.6,661.49,0.92031856]
[1746849137942,0.24689493,662.6,661.5,0.92031856]
[1746849138143,0.26281804,662.61,661.51,0.92031856]
[1746849138445,0.24707703,662.6,661.52,0.92031856]
[1746849138649,0.24707703,662.6,661.53,0.92031856]
[1746849138852,0.24707703,662.6,661.54,0.92031856]
[1746849139040,0.24707703,662.6,661.47,0.30235687]
[1746849139849,0.24707703,662.6,661.48,0.92098116]
[1746849140148,0.24707703,662.6,661.47,0.30235687]
[1746849141350,0.26281804,662.61,661.47,0.30235687]
[1746849141543,0.24706465,662.6,661.47,0.30235687]
[1746849142949,0.24706465,662.71,661.47,0.30235687]
[1746849143249,0.24706465,662.7,661.47,0.30235687]
[1746849143648,0.24706465,662.71,661.47,0.30235687]
[1746849144049,0.50992438,662.7,661.47,0.30235687]
[1746849145050,0.24706465,662.69,661.47,0.30235687]
[1746849145343,0.26285973,662.7,661.47,0.30235687]
[1746849145344,0.24706465,662.68,661.47,0.30235687]
[1746849146252,0.50992438,662.67,661.47,0.30235687]
[1746849146653,0.24706465,662.66,661.47,0.30235687]
[1746849146849,0.24706465,662.65,661.47,0.30235687]
[1746849147252,0.24706465,662.64,661.47,0.30235687]
[1746849147652,0.24706465,662.63,661.47,0.30235687]
[1746849148051,0.24706465,662.62,661.47,0.30235687]
[1746849148751,0.24706465,662.66,661.47,0.30235687]
[1746849148952,0.30178657,662.72,661.47,0.30235687]
[1746849149252,0.51002846,662.65,661.47,0.30235687]
[1746849149553,0.247131,662.64,661.47,0.30235687]
[1746849149952,0.247131,662.63,661.47,0.30235687]
[1746849150252,0.247131,662.62,661.47,0.30235687]
[1746849151254,0.247131,662.61,661.47,0.30235687]
[1746849151754,0.247131,662.6,661.47,0.30235687]
[1746849152156,0.247131,662.59,661.47,0.30235687]
[1746849152451,0.247131,662.58,661.47,0.30235687]
[1746849152754,0.247131,662.57,661.47,0.30235687]
[1746849153056,0.247131,662.56,661.47,0.30235687]
[1746849153354,0.247131,662.55,661.47,0.30235687]
[1746849153654,0.247131,662.54,661.47,0.30235687]
[1746849154158,0.247131,662.53,661.47,0.30235687]
[1746849154761,0.247131,662.52,661.47,0.30235687]
[1746849155161,0.247131,662.51,661.47,0.30235687]
[1746849155761,0.247131,662.5,661.47,0.30235687]
[1746849156060,0.247131,662.49,661.47,0.30235687]
[1746849156462,0.247131,662.48,661.47,0.30235687]
[1746849156959,0.247131,662.47,661.47,0.30235687]
[1746849157257,0.247131,662.46,661.47,0.30235687]
[1746849157662,0.247131,662.45,661.47,0.30235687]
[1746849158064,0.26289349,662.44,661.47,0.30235687]
[1746849158365,0.51002449,662.44,661.47,0.30235687]
[1746849158563,0.247131,662.43,661.47,0.30235687]
[1746849161264,0.2628776,662.42,661.47,0.30235687]
[1746849161567,0.247131,662.41,661.47,0.30235687]
[1746849162265,0.247131,662.41,661.48,0.405]
[1746849164869,0.2628776,662.42,661.48,0.405]
[1746849165072,0.24820765,662.41,661.48,0.405]
[1746849167369,0.26288157,662.4,661.48,0.405]
[1746849168073,0.24820765,662.39,661.48,0.405]
[1746849170268,0.26287562,662.38,661.48,0.405]
[1746849170672,0.24820765,662.37,661.48,0.405]
[1746849172274,0.24820765,662.37,661.49,0.389]
[1746849173169,0.24820765,662.71,661.49,0.389]
[1746849173375,0.26287462,662.36,661.49,0.389]
[1746849173576,0.24820765,662.71,661.49,0.389]
[1746849174375,0.26285278,662.7,661.49,0.389]
[1746849174779,0.51106043,662.7,661.49,0.389]
[1746849175075,0.24820765,662.69,661.49,0.389]
[1746849178683,0.24820765,662.69,661.5,0.92558772]
[1746849178881,0.24820765,662.69,661.51,0.92558772]
[1746849179081,0.24820765,662.69,661.52,0.92558772]
[1746849179382,0.24820765,662.69,661.53,0.92558772]
[1746849179583,0.24820765,662.69,661.54,0.92558772]
[1746849179882,0.24820765,662.69,661.55,0.92558772]
[1746849180083,0.24820765,662.69,661.56,0.92558772]
[1746849180283,0.24820765,662.69,661.57,0.92558772]
[1746849180484,0.24820765,662.69,661.49,0.389]
[1746849180686,0.24820765,662.69,661.5,0.92536592]
[1746849180979,0.24820765,662.68,661.51,0.92536592]
[1746849181184,0.24820765,662.68,661.52,0.92536592]
[1746849181377,0.24820765,662.68,661.53,0.92536592]
[1746849181579,0.24820765,662.68,661.54,1.26536592]
[1746849181780,0.24820765,662.69,661.55,0.92536592]
[1746849181983,0.24820765,662.69,661.56,0.92536592]
[1746849182182,0.24820765,662.71,661.57,0.92536592]
[1746849182385,0.24820765,662.68,661.58,0.92460506]
[1746849182684,0.51099692,662.68,661.59,0.92460506]
[1746849182885,0.26278927,662.68,661.6,0.92460506]
[1746849183082,0.26278927,662.68,661.61,0.92460506]
[1746849183287,0.24820765,662.67,661.62,0.92460506]
[1746849183485,0.24820765,662.67,661.63,0.92460506]
[1746849183678,0.24820765,662.67,661.64,0.92460506]
[1746849183982,0.24820765,662.67,661.65,0.92438699]
[1746849184284,0.24820765,662.67,661.66,0.9243375]
[1746849184484,0.24820765,662.67,661.54,0.34]
[1746849184681,0.24820765,662.67,661.55,0.92413445]
[1746849184882,0.24820765,662.67,661.56,0.92413445]
[1746849185081,0.24820765,662.67,661.57,0.92413445]
[1746849185379,0.24820765,662.67,661.58,0.92413445]
[1746849185578,0.24820765,662.67,661.59,0.92413445]
[1746849185781,0.24820765,662.67,661.6,0.92413445]
[1746849185981,0.24820765,662.67,661.61,0.92413445]
[1746849186278,0.24820765,662.67,661.54,0.34]
[1746849186582,0.24820765,662.67,661.55,0.92382827]
[1746849186783,0.24820765,662.67,661.56,0.92382827]
[1746849186978,0.24820765,662.67,661.57,0.92383904]
[1746849187185,0.24820765,662.67,661.54,0.34]
[1746849187386,0.24820765,662.67,661.55,0.92379094]
[1746849187587,0.24820765,662.67,661.56,0.92379094]